[Event "FIDE Womens Grand Swiss 2023"]
[Site "Douglas/Isle of Man"]
[Date "2023.10.27"]
[Round "3.16"]
[White "Mkrtchyan, Mariam"]
[Black "Javakhishvili, Lela"]
[Result "0-1"]
[ECO "A04"]
[WhiteElo "2343"]
[BlackElo "2437"]
[Annotator "ChessBase"]
[PlyCount "184"]
[EventDate "2023.10.04"]
[EventType "swiss"]
[EventCountry "GBR"]
[SourceTitle "playchess.com"]
[Source "ChessBase"]
[SourceQuality "1"]
[TimeControl "40/6000+30:20/3000+30:900+30"]

1. d4 {[%emt 0:10:03]} g6 {[%emt 0:10:09]} 2. Nf3 {[%emt 0:02:02]} Bg7 {[%emt 0:00:11]} 3. g3 {[%emt 0:02:00]} c5 {[%emt 0:00:38]} 4. c3 {[%emt 0:00:06]} cxd4 {[%emt 0:10:29]} 5. cxd4 {[%emt 0:00:20]} d5 {[%emt 0:00:04]} 6. Bg2 {[%emt 0:00:15]} Nc6 {[%emt 0:00:12]} 7. Nc3 {[%emt 0:00:43]} e6 {[%emt 0:01:31]} 8. O-O {[%emt 0:01:49]} Nge7 {[%emt 0:00:05]} 9. Bg5 {[%emt 0:07:30]} h6 {[%emt 0:02:20]} 10. Bxe7 {[%emt 0:01:17]} Qxe7 {[%emt 0:03:14]} 11. e3 {[%emt 0:00:05]} O-O {[%emt 0:02:19]} 12. Rc1 {[%emt 0:00:14]} Bd7 {[%emt 0:03:19]} 13. Ne1 {[%emt 0:03:56]} Na5 {[%emt 0:01:47]} 14. Nd3 {[%emt 0:01:09]} Rfc8 {[%emt 0:01:31]} 15. Qe2 {[%emt 0:04:09]} b6 {[%emt 0:11:08]} 16. Rc2 {[%emt 0:04:06]} Bc6 {[%emt 0:00:55]} 17. Rfc1 {[%emt 0:03:34]} Bb7 {[%emt 0:00:08]} 18. Bf1 {[%emt 0:13:32]} Nc4 {[%emt 0:04:45]} 19. Nb1 {[%emt 0:07:27]} Na5 {[%emt 0:07:08]} 20. Qe1 {[%emt 0:04:53]} Rxc2 {[%emt 0:00:59]} 21. Rxc2 {[%emt 0:00:00]} Rc8 {[%emt 0:01:45]} 22. Rxc8+ {[%emt 0:02:34]} Bxc8 {[%emt 0:00:02]} 23. Qc3 {[%emt 0:00:06]} Bb7 {[%emt 0:01:08]} 24. Nd2 {[%emt 0:01:14]} Qd6 {[%emt 0:03:10]} 25. f4 {[%emt 0:04:15]} Qc6 {[%emt 0:01:18]} 26. Nb4 {[%emt 0:08:43]} Qxc3 {[%emt 0:01:16]} 27. bxc3 {[%emt 0:00:01]} Bf8 {[%emt 0:00:22]} 28. Bb5 {[%emt 0:00:37]} Bd6 {[%emt 0:01:44]} 29. Kf2 {[%emt 0:01:45]} Kf8 {[%emt 0:02:11]} 30. Ke2 {[%emt 0:03:12]} Ke7 {[%emt 0:00:34]} 31. Kd3 {[%emt 0:01:50]} g5 {[%emt 0:03:13]} 32. Kc2 {[%emt 0:03:15]} f6 {[%emt 0:01:04]} 33. a4 {[%emt 0:08:21]} Kf7 {[%emt 0:01:30]} 34. Bd3 {[%emt 0:04:19]} Nc6 {[%emt 0:03:06]} 35. Nxc6 {[%emt 0:01:28]} Bxc6 {[%emt 0:00:05]} 36. Kb3 {[%emt 0:00:02]} Ke7 {[%emt 0:01:49]} 37. Bb5 {[%emt 0:03:21]} Bb7 {[%emt 0:00:06]} 38. Be2 {[%emt 0:00:32]} Bc6 {[%emt 0:02:10]} 39. Nf3 {[%emt 0:01:02]} Be8 {[%emt 0:01:05]} 40. Nd2 {[%emt 0:02:18]} Bf7 {[%emt 0:03:32]} 41. a5 {[%emt 0:26:32]} bxa5 {[%emt 0:29:06]} 42. Ka4 {[%emt 0:00:03]} Bg6 {[%emt 0:03:41]} 43. Kxa5 {[%emt 0:00:38]} Ba3 {[%emt 0:00:42]} 44. Ka6 {[%emt 0:10:55]} Bc1 {[%emt 0:02:19]} 45. Nf1 {[%emt 0:00:02]} Be4 {[%emt 0:01:54]} 46. Kxa7 {[%emt 0:00:04]} Bg2 {[%emt 0:00:26]} 47. fxg5 {[%emt 0:01:47]} fxg5 {[%emt 0:01:59]} 48. g4 {[%emt 0:03:47]} Bxf1 {[%emt 0:02:21]} 49. Bxf1 {[%emt 0:00:03]} Bd2 {[%emt 0:01:01]} 50. Kb6 {[%emt 0:02:35]} Kd6 {[%emt 0:01:41]} 51. Kb5 {[%emt 0:04:02]} Bxc3 {[%emt 0:00:08]} 52. Bg2 {[%emt 0:00:21]} Bd2 {[%emt 0:02:10]} 53. e4 {[%emt 0:00:00]} Bc3 {[%emt 0:19:41]} 54. exd5 {[%emt 0:00:11]} exd5 {[%emt 0:00:05]} 55. Ka4 {[%emt 0:00:41]} Bxd4 {[%emt 0:00:06]} 56. Kb3 {[%emt 0:00:02]} Ke5 {[%emt 0:00:23]} 57. Kc2 {[%emt 0:00:17]} Bg1 {[%emt 0:00:14]} 58. h3 {[%emt 0:00:14]} d4 {[%emt 0:00:24]} 59. Kd3 {[%emt 0:00:11]} Kf4 {[%emt 0:00:02]} 60. Bf1 {[%emt 0:03:47]} Kf3 {[%emt 0:00:12]} 61. Be2+ {[%emt 0:15:53]} Kg3 {[%emt 0:15:18]} 62. Bf1 {[%emt 0:00:42]} Kf2 {[%emt 0:00:02]} 63. Be2 {[%emt 0:00:02]} Kg2 {[%emt 0:00:10]} 64. Ke4 {[%emt 0:00:21]} Kxh3 {[%emt 0:00:06]} 65. Bf3 {[%emt 0:02:27]} Be3 {[%emt 0:01:50]} 66. Be2 {[%emt 0:00:44]} Kg3 {[%emt 0:00:19]} 67. Bd1 {[%emt 0:00:13]} Kf2 {[%emt 0:01:30]} 68. Kd3 {[%emt 0:00:24]} Ke1 {[%emt 0:00:31]} 69. Bf3 {[%emt 0:00:25]} Bg1 {[%emt 0:00:36]} 70. Bc6 {[%emt 0:03:22]} Kf2 {[%emt 0:00:45]} 71. Ba4 {[%emt 0:00:02]} Kg3 {[%emt 0:01:07]} 72. Bd1 {[%emt 0:00:03]} Kf4 {[%emt 0:00:09]} 73. Be2 {[%emt 0:00:05]} Ke5 {[%emt 0:00:09]} 74. Bd1 {[%emt 0:01:35]} Be3 {[%emt 0:00:03]} 75. Bf3 {[%emt 0:01:37]} Bc1 {[%emt 0:00:05]} 76. Bc6 {[%emt 0:00:41]} Ba3 {[%emt 0:00:14]} 77. Be8 {[%emt 0:00:26]} Bf8 {[%emt 0:00:34]} 78. Bh5 {[%emt 0:00:19]} Bb4 {[%emt 0:01:27]} 79. Be8 {[%emt 0:00:38]} Bc3 {[%emt 0:00:40]} 80. Ba4 {[%emt 0:00:27]} Kf4 {[%emt 0:00:27]} 81. Bd1 {[%emt 0:00:20]} Bb2 {[%emt 0:00:32]} 82. Be2 {[%emt 0:00:10]} Ke5 {[%emt 0:00:07]} 83. Bd1 {[%emt 0:00:03]} Ba3 {[%emt 0:00:12]} 84. Ba4 {[%emt 0:00:14]} Bc5 {[%emt 0:07:16]} 85. Kc4 {[%emt 0:01:38]} Bf8 {[%emt 0:00:27]} 86. Be8 {[%emt 0:00:47]} Ke4 {[%emt 0:00:26]} 87. Bg6+ {[%emt 0:00:23]} Ke3 {[%emt 0:00:02]} 88. Bf5 {[%emt 0:00:17]} Bg7 {[%emt 0:00:12]} 89. Bg6 {[%emt 0:00:08]} h5 {[%emt 0:01:32]} 90. gxh5 {[%emt 0:01:13]} g4 {[%emt 0:00:02]} 91. Bf5 {[%emt 0:00:08]} g3 {[%emt 0:00:05]} 92. h6 {[%emt 0:00:02]} g2 {[%emt 0:00:57]} 0-1

[Event "FIDE Womens Grand Swiss 2023"]
[Site "Douglas/Isle of Man"]
[Date "2023.10.27"]
[Round "3.17"]
[White "Savitha Shri B"]
[Black "Ushenina, Anna"]
[Result "1/2-1/2"]
[ECO "C70"]
[WhiteElo "2375"]
[BlackElo "2434"]
[Annotator "ChessBase"]
[PlyCount "77"]
[EventDate "2023.10.04"]
[EventType "swiss"]
[EventCountry "GBR"]
[SourceTitle "playchess.com"]
[Source "ChessBase"]
[SourceQuality "1"]
[TimeControl "40/6000+30:20/3000+30:900+30"]

1. e4 {[%emt 0:10:30]} e5 {[%emt 0:10:15]} 2. Nf3 {[%emt 0:00:06]} Nc6 {[%emt 0:00:10]} 3. Bb5 {[%emt 0:00:05]} a6 {[%emt 0:00:09]} 4. Ba4 {[%emt 0:00:04]} Bc5 {[%emt 0:00:27]} 5. d3 {[%emt 0:02:43]} d6 {[%emt 0:13:27]} 6. c3 {[%emt 0:02:01]} Bd7 {[%emt 0:05:41]} 7. O-O {[%emt 0:02:04]} Nge7 {[%emt 0:02:50]} 8. b4 {[%emt 0:12:27]} Ba7 {[%emt 0:00:53]} 9. Bb3 {[%emt 0:00:06]} O-O {[%emt 0:16:17]} 10. Na3 {[%emt 0:11:13]} Ng6 {[%emt 0:12:17]} 11. Nc2 {[%emt 0:04:35]} h6 {[%emt 0:01:32]} 12. Ne3 {[%emt 0:03:51]} Kh8 {[%emt 0:09:04]} 13. d4 {[%emt 0:11:17]} Nce7 {[%emt 0:11:07]} 14. dxe5 {[%emt 0:02:29]} dxe5 {[%emt 0:01:06]} 15. Nc4 {[%emt 0:04:21]} Nc6 {[%emt 0:04:48]} 16. Be3 {[%emt 0:03:11]} b5 {[%emt 0:00:58]} 17. Nb2 {[%emt 0:00:58]} Bxe3 {[%emt 0:01:30]} 18. fxe3 {[%emt 0:00:02]} a5 {[%emt 0:02:04]} 19. a3 {[%emt 0:05:01]} Qe7 {[%emt 0:00:10]} 20. Bd5 {[%emt 0:01:33]} Ra7 {[%emt 0:00:43]} 21. Qb3 {[%emt 0:06:16]} Nd8 {[%emt 0:00:13]} 22. Qc2 {[%emt 0:01:37]} c6 {[%emt 0:00:34]} 23. Bb3 {[%emt 0:00:46]} Be6 {[%emt 0:01:16]} 24. Nd3 {[%emt 0:01:45]} Nb7 {[%emt 0:05:00]} 25. a4 {[%emt 0:04:19]} axb4 {[%emt 0:04:31]} 26. cxb4 {[%emt 0:06:58]} Bxb3 {[%emt 0:00:07]} 27. Qxb3 {[%emt 0:00:01]} bxa4 {[%emt 0:01:15]} 28. Rxa4 {[%emt 0:00:46]} Rxa4 {[%emt 0:00:10]} 29. Qxa4 {[%emt 0:00:01]} Rd8 {[%emt 0:01:08]} 30. Qa6 {[%emt 0:00:47]} c5 {[%emt 0:01:57]} 31. Nfxe5 {[%emt 0:02:58]} Nxe5 {[%emt 0:00:12]} 32. Nxe5 {[%emt 0:00:02]} Qxe5 {[%emt 0:01:12]} 33. Qxb7 {[%emt 0:00:01]} cxb4 {[%emt 0:01:34]} 34. Qxb4 {[%emt 0:00:21]} f6 {[%emt 0:00:30]} 35. Qc4 {[%emt 0:01:23]} Re8 {[%emt 0:00:46]} 36. Rf4 {[%emt 0:01:01]} Qa1+ {[%emt 0:00:08]} 37. Rf1 {[%emt 0:03:54]} Qe5 {[%emt 0:00:08]} 38. Rf4 {[%emt 0:00:45]} Qa1+ {[%emt 0:00:03]} 39. Rf1 {[%emt 0:00:07]} 1/2-1/2

[Event "FIDE Womens Grand Swiss 2023"]
[Site "Douglas/Isle of Man"]
[Date "2023.10.27"]
[Round "3.18"]
[White "Injac, Teodora"]
[Black "Aulia, Medina Warda"]
[Result "1-0"]
[ECO "E06"]
[WhiteElo "2426"]
[BlackElo "2362"]
[Annotator "ChessBase"]
[PlyCount "91"]
[EventDate "2023.10.04"]
[EventType "swiss"]
[EventCountry "GBR"]
[SourceTitle "playchess.com"]
[Source "ChessBase"]
[SourceQuality "1"]
[TimeControl "40/6000+30:20/3000+30:900+30"]

1. d4 {[%emt 0:10:04]} d5 {[%emt 0:10:07]} 2. c4 {[%emt 0:00:39]} e6 {[%emt 0:00:09]} 3. Nf3 {[%emt 0:00:08]} Nf6 {[%emt 0:00:07]} 4. g3 {[%emt 0:00:09]} Be7 {[%emt 0:00:17]} 5. Bg2 {[%emt 0:00:19]} O-O {[%emt 0:00:32]} 6. Nc3 {[%emt 0:00:32]} dxc4 {[%emt 0:00:21]} 7. Ne5 {[%emt 0:00:55]} Qd6 {[%emt 0:00:29]} 8. O-O {[%emt 0:05:09]} Qa6 {[%emt 0:00:14]} 9. a4 {[%emt 0:02:19]} Rd8 {[%emt 0:01:08]} 10. Nb5 {[%emt 0:02:03]} Ne8 {[%emt 0:00:14]} 11. Qc2 {[%emt 0:04:17]} Nd7 {[%emt 0:06:43]} 12. Qxc4 {[%emt 0:15:45]} Nxe5 {[%emt 0:04:14]} 13. dxe5 {[%emt 0:00:03]} Bd7 {[%emt 0:00:18]} 14. Be3 {[%emt 0:05:09]} Bc6 {[%emt 0:03:58]} 15. Rfc1 {[%emt 0:15:37]} Bxg2 {[%emt 0:00:45]} 16. Kxg2 {[%emt 0:00:02]} c6 {[%emt 0:00:18]} 17. Nd6 {[%emt 0:04:19]} Qxc4 {[%emt 0:01:56]} 18. Nxc4 {[%emt 0:00:02]} Nc7 {[%emt 0:00:51]} 19. h4 {[%emt 0:09:53]} h6 {[%emt 0:03:31]} 20. a5 {[%emt 0:04:42]} Na6 {[%emt 0:06:55]} 21. Rd1 {[%emt 0:03:40]} Rd5 {[%emt 0:01:05]} 22. Nd6 {[%emt 0:03:58]} Rxe5 {[%emt 0:14:24]} 23. Nxb7 {[%emt 0:03:34]} Rb5 {[%emt 0:00:51]} 24. Rd7 {[%emt 0:07:38]} Bf6 {[%emt 0:00:11]} 25. Rc1 {[%emt 0:01:41]} Rxb2 {[%emt 0:04:39]} 26. Nd6 {[%emt 0:03:33]} c5 {[%emt 0:01:37]} 27. Ne4 {[%emt 0:02:06]} Bd8 {[%emt 0:04:52]} 28. Nxc5 {[%emt 0:01:52]} Nxc5 {[%emt 0:00:04]} 29. Rxc5 {[%emt 0:00:04]} a6 {[%emt 0:01:09]} 30. Rd2 {[%emt 0:01:08]} Rb5 {[%emt 0:01:15]} 31. Rxb5 {[%emt 0:00:28]} axb5 {[%emt 0:00:05]} 32. a6 {[%emt 0:01:28]} Ba5 {[%emt 0:03:52]} 33. Rd6 {[%emt 0:01:16]} b4 {[%emt 0:01:03]} 34. a7 {[%emt 0:00:02]} b3 {[%emt 0:07:28]} 35. Rd7 {[%emt 0:01:04]} b2 {[%emt 0:01:08]} 36. Rb7 {[%emt 0:00:03]} Bc3 {[%emt 0:00:03]} 37. Kf3 {[%emt 0:01:00]} Kh7 {[%emt 0:00:31]} 38. Ke4 {[%emt 0:00:57]} Rd8 {[%emt 0:04:46]} 39. f4 {[%emt 0:01:26]} f5+ {[%emt 0:02:14]} 40. Kf3 {[%emt 0:00:01]} h5 {[%emt 0:02:05]} 41. Rb8 {[%emt 0:24:17]} Kg6 {[%emt 0:20:07]} 42. Kg2 {[%emt 0:03:47]} Bf6 {[%emt 0:04:56]} 43. Rxd8 {[%emt 0:03:57]} Bxd8 {[%emt 0:02:03]} 44. a8=Q {[%emt 0:00:06]} b1=Q {[%emt 0:00:12]} 45. Qxd8 {[%emt 0:00:02]} Qe1 {[%emt 0:00:07]} 46. Qg5+ {[%emt 0:00:20]} 1-0

[Event "FIDE Womens Grand Swiss 2023"]
[Site "Douglas/Isle of Man"]
[Date "2023.10.27"]
[Round "3.19"]
[White "Munguntuul, Batkhuyag"]
[Black "Danielian, Elina"]
[Result "1-0"]
[ECO "C18"]
[WhiteElo "2366"]
[BlackElo "2416"]
[Annotator "ChessBase"]
[PlyCount "55"]
[EventDate "2023.10.04"]
[EventType "swiss"]
[EventCountry "GBR"]
[SourceTitle "playchess.com"]
[Source "ChessBase"]
[SourceQuality "1"]
[TimeControl "40/6000+30:20/3000+30:900+30"]

1. e4 {[%emt 0:10:03]} e6 {[%emt 0:10:06]} 2. d4 {[%emt 0:00:05]} d5 {[%emt 0:00:03]} 3. Nc3 {[%emt 0:00:07]} Bb4 {[%emt 0:00:17]} 4. e5 {[%emt 0:00:05]} c5 {[%emt 0:00:11]} 5. a3 {[%emt 0:00:05]} Bxc3+ {[%emt 0:00:07]} 6. bxc3 {[%emt 0:00:04]} Qa5 {[%emt 0:00:15]} 7. Bd2 {[%emt 0:00:06]} Qa4 {[%emt 0:00:03]} 8. Qg4 {[%emt 0:00:13]} Kf8 {[%emt 0:00:07]} 9. Qd1 {[%emt 0:00:11]} b6 {[%emt 0:00:17]} 10. dxc5 {[%emt 0:01:07]} bxc5 {[%emt 0:00:07]} 11. Nf3 {[%emt 0:00:19]} Ne7 {[%emt 0:11:40]} 12. Rb1 {[%emt 0:02:20]} Ba6 {[%emt 0:04:25]} 13. Bxa6 {[%emt 0:01:13]} Qxa6 {[%emt 0:01:18]} 14. Qe2 {[%emt 0:00:20]} Qc6 {[%emt 0:11:55]} 15. O-O {[%emt 0:06:56]} Nd7 {[%emt 0:00:33]} 16. Rb3 {[%emt 0:27:53]} h6 {[%emt 0:03:25]} 17. Rfb1 {[%emt 0:01:34]} Nb6 {[%emt 0:16:29]} 18. Rb5 {[%emt 0:05:20]} Kg8 {[%emt 0:03:00]} 19. Be3 {[%emt 0:06:48]} Na4 {[%emt 0:20:43]} 20. Qd3 {[%emt 0:01:50]} g6 {[%emt 0:02:15]} 21. h4 {[%emt 0:06:11]} Kg7 {[%emt 0:04:25]} 22. h5 {[%emt 0:02:14]} Rad8 {[%emt 0:09:26]} 23. Rb7 {[%emt 0:06:54]} Rd7 {[%emt 0:00:11]} 24. Rxd7 {[%emt 0:00:15]} Qxd7 {[%emt 0:00:02]} 25. Qa6 {[%emt 0:00:12]} Rc8 {[%emt 0:11:04]} 26. Rb7 {[%emt 0:01:38]} Qe8 {[%emt 0:00:01]} 27. Rxe7 {[%emt 0:01:02]} Qxe7 {[%emt 0:00:01]} 28. Qxc8 {[%emt 0:00:10]} 1-0

[Event "FIDE Womens Grand Swiss 2023"]
[Site "Douglas/Isle of Man"]
[Date "2023.10.27"]
[Round "3.20"]
[White "Matnadze Bujiashvili, Ann"]
[Black "Sandu, Mihaela"]
[Result "1/2-1/2"]
[ECO "E04"]
[WhiteElo "2400"]
[BlackElo "2298"]
[Annotator "ChessBase"]
[PlyCount "118"]
[EventDate "2023.10.04"]
[EventType "swiss"]
[EventCountry "GBR"]
[SourceTitle "playchess.com"]
[Source "ChessBase"]
[SourceQuality "1"]
[TimeControl "40/6000+30:20/3000+30:900+30"]

1. d4 {[%emt 0:10:04]} Nf6 {[%emt 0:10:05]} 2. g3 {[%emt 0:00:13]} e6 {[%emt 0:00:16]} 3. c4 {[%emt 0:00:08]} d5 {[%emt 0:00:12]} 4. Bg2 {[%emt 0:00:44]} Bb4+ {[%emt 0:00:17]} 5. Bd2 {[%emt 0:00:10]} a5 {[%emt 0:00:23]} 6. Nf3 {[%emt 0:00:25]} dxc4 {[%emt 0:00:56]} 7. Qc2 {[%emt 0:00:17]} c5 {[%emt 0:01:18]} 8. dxc5 {[%emt 0:05:48]} Bxc5 {[%emt 0:01:53]} 9. Qxc4 {[%emt 0:01:51]} b6 {[%emt 0:05:47]} 10. Ne5 {[%emt 0:02:51]} Ra7 {[%emt 0:00:21]} 11. Qa4+ {[%emt 0:06:26]} Nfd7 {[%emt 0:01:13]} 12. Nc3 {[%emt 0:02:37]} O-O {[%emt 0:00:25]} 13. Nd3 {[%emt 0:01:00]} Bb7 {[%emt 0:01:42]} 14. Bxb7 {[%emt 0:06:37]} Rxb7 {[%emt 0:01:58]} 15. Qe4 {[%emt 0:00:26]} Rc7 {[%emt 0:08:06]} 16. O-O {[%emt 0:09:36]} Nf6 {[%emt 0:08:23]} 17. Qg2 {[%emt 0:04:29]} Nc6 {[%emt 0:14:32]} 18. Bf4 {[%emt 0:01:18]} Rc8 {[%emt 0:03:22]} 19. Nxc5 {[%emt 0:04:13]} bxc5 {[%emt 0:00:04]} 20. Rfd1 {[%emt 0:00:22]} Qb6 {[%emt 0:00:22]} 21. b3 {[%emt 0:05:29]} h6 {[%emt 0:06:15]} 22. Ne4 {[%emt 0:20:09]} Nd5 {[%emt 0:15:06]} 23. Bd6 {[%emt 0:10:45]} Rfd8 {[%emt 0:00:55]} 24. Bxc5 {[%emt 0:00:13]} Qb5 {[%emt 0:00:11]} 25. Rac1 {[%emt 0:05:04]} Qxe2 {[%emt 0:07:42]} 26. Rd2 {[%emt 0:00:30]} Qa6 {[%emt 0:08:40]} 27. Rcd1 {[%emt 0:00:15]} Ncb4 {[%emt 0:00:55]} 28. Bd4 {[%emt 0:03:55]} Rc2 {[%emt 0:03:03]} 29. Qf3 {[%emt 0:02:15]} Rxd2 {[%emt 0:00:52]} 30. Rxd2 {[%emt 0:00:09]} Rc8 {[%emt 0:00:54]} 31. Nc5 {[%emt 0:01:21]} Qc6 {[%emt 0:01:39]} 32. Qg4 {[%emt 0:00:49]} e5 {[%emt 0:01:10]} 33. Bxe5 {[%emt 0:00:46]} f6 {[%emt 0:04:17]} 34. Ne6 {[%emt 0:01:38]} Qd7 {[%emt 0:01:27]} 35. Bxf6 {[%emt 0:02:07]} Re8 {[%emt 0:01:40]} 36. Qxg7+ {[%emt 0:02:11]} Qxg7 {[%emt 0:00:11]} 37. Bxg7 {[%emt 0:00:45]} Rxe6 {[%emt 0:00:06]} 38. Bd4 {[%emt 0:00:25]} h5 {[%emt 0:01:44]} 39. Kg2 {[%emt 0:00:25]} Kf7 {[%emt 0:00:26]} 40. h3 {[%emt 0:00:24]} Rc6 {[%emt 0:00:13]} 41. Re2 {[%emt 0:25:40]} Rc2 {[%emt 0:21:07]} 42. Re5 {[%emt 0:00:37]} Rd2 {[%emt 0:00:20]} 43. a3 {[%emt 0:05:18]} Rxd4 {[%emt 0:03:01]} 44. axb4 {[%emt 0:00:02]} axb4 {[%emt 0:00:42]} 45. Rxh5 {[%emt 0:00:06]} Rd3 {[%emt 0:03:17]} 46. Rf5+ {[%emt 0:06:40]} Ke6 {[%emt 0:07:19]} 47. Rf3 {[%emt 0:00:28]} Rc3 {[%emt 0:00:04]} 48. h4 {[%emt 0:01:51]} Nf6 {[%emt 0:09:59]} 49. Rf4 {[%emt 0:03:43]} Nd5 {[%emt 0:04:31]} 50. Re4+ {[%emt 0:02:31]} Kf5 {[%emt 0:00:55]} 51. Rd4 {[%emt 0:02:03]} Ke5 {[%emt 0:00:12]} 52. Rg4 {[%emt 0:00:13]} Rxb3 {[%emt 0:00:13]} 53. h5 {[%emt 0:00:11]} Ra3 {[%emt 0:00:16]} 54. h6 {[%emt 0:01:49]} Ra7 {[%emt 0:00:59]} 55. Rh4 {[%emt 0:01:23]} Rh7 {[%emt 0:00:10]} 56. Rh1 {[%emt 0:01:38]} Nc3 {[%emt 0:01:11]} 57. Rh4 {[%emt 0:01:07]} Nd5 {[%emt 0:00:10]} 58. Rh1 {[%emt 0:00:05]} Nc3 {[%emt 0:01:23]} 59. Rh4 {[%emt 0:00:05]} Nd5 {[%emt 0:00:17]} 1/2-1/2

[Event "FIDE Womens Grand Swiss 2023"]
[Site "Douglas/Isle of Man"]
[Date "2023.10.27"]
[Round "3.21"]
[White "Terbe, Julianna"]
[Black "Cori T., Deysi"]
[Result "1/2-1/2"]
[ECO "A88"]
[WhiteElo "2266"]
[BlackElo "2367"]
[Annotator "ChessBase"]
[PlyCount "69"]
[EventDate "2023.10.04"]
[EventType "swiss"]
[EventCountry "GBR"]
[SourceTitle "playchess.com"]
[Source "ChessBase"]
[SourceQuality "1"]
[TimeControl "40/6000+30:20/3000+30:900+30"]

1. d4 {[%emt 0:10:04]} f5 {[%emt 0:10:40]} 2. Nf3 {[%emt 0:00:22]} Nf6 {[%emt 0:00:15]} 3. g3 {[%emt 0:00:03]} g6 {[%emt 0:00:14]} 4. Bg2 {[%emt 0:00:03]} Bg7 {[%emt 0:00:05]} 5. O-O {[%emt 0:00:06]} O-O {[%emt 0:00:09]} 6. c4 {[%emt 0:00:02]} d6 {[%emt 0:00:04]} 7. Nc3 {[%emt 0:00:04]} c6 {[%emt 0:00:45]} 8. Re1 {[%emt 0:00:56]} Ne4 {[%emt 0:01:01]} 9. Qc2 {[%emt 0:00:53]} Nxc3 {[%emt 0:00:20]} 10. bxc3 {[%emt 0:00:06]} e5 {[%emt 0:02:34]} 11. dxe5 {[%emt 0:00:53]} dxe5 {[%emt 0:00:04]} 12. Ba3 {[%emt 0:00:05]} Re8 {[%emt 0:00:37]} 13. e4 {[%emt 0:00:04]} Na6 {[%emt 0:09:07]} 14. Rad1 {[%emt 0:08:42]} Qa5 {[%emt 0:09:52]} 15. Bd6 {[%emt 0:07:22]} Be6 {[%emt 0:06:26]} 16. Nd2 {[%emt 0:18:18]} Rad8 {[%emt 0:13:23]} 17. Nb3 {[%emt 0:04:29]} Qa4 {[%emt 0:00:23]} 18. c5 {[%emt 0:03:00]} b6 {[%emt 0:05:02]} 19. exf5 {[%emt 0:09:05]} Bxf5 {[%emt 0:01:03]} 20. Be4 {[%emt 0:01:15]} bxc5 {[%emt 0:08:30]} 21. Bxf5 {[%emt 0:04:17]} gxf5 {[%emt 0:00:02]} 22. Qxf5 {[%emt 0:00:45]} Qxa2 {[%emt 0:00:19]} 23. Qg4 {[%emt 0:23:35]} Qxb3 {[%emt 0:22:10]} 24. Bxe5 {[%emt 0:00:06]} Qf7 {[%emt 0:00:06]} 25. Rxd8 {[%emt 0:00:31]} Rxd8 {[%emt 0:00:06]} 26. Bxg7 {[%emt 0:00:04]} Qxg7 {[%emt 0:01:00]} 27. Qc4+ {[%emt 0:00:06]} Kh8 {[%emt 0:00:08]} 28. Qxa6 {[%emt 0:00:45]} Qxc3 {[%emt 0:00:04]} 29. Re3 {[%emt 0:03:32]} Qd2 {[%emt 0:05:39]} 30. Qxa7 {[%emt 0:06:53]} Qd1+ {[%emt 0:00:41]} 31. Kg2 {[%emt 0:00:04]} Qd5+ {[%emt 0:00:02]} 32. Kg1 {[%emt 0:00:46]} Qd1+ {[%emt 0:00:07]} 33. Kg2 {[%emt 0:00:02]} Qd5+ {[%emt 0:00:04]} 34. Kg1 {[%emt 0:02:27]} Qd1+ {[%emt 0:00:07]} 35. Kg2 {[%emt 0:00:03]} 1/2-1/2

[Event "FIDE Womens Grand Swiss 2023"]
[Site "Douglas/Isle of Man"]
[Date "2023.10.27"]
[Round "3.22"]
[White "Socko, Monika"]
[Black "Vantika Agrawal"]
[Result "1/2-1/2"]
[ECO "B55"]
[WhiteElo "2380"]
[BlackElo "2435"]
[Annotator "ChessBase"]
[PlyCount "36"]
[EventDate "2023.10.04"]
[EventType "swiss"]
[EventCountry "GBR"]
[SourceTitle "playchess.com"]
[Source "ChessBase"]
[SourceQuality "1"]
[TimeControl "40/6000+30:20/3000+30:900+30"]

1. e4 {[%emt 0:10:03]} c5 {[%emt 0:10:07]} 2. Nf3 {[%emt 0:00:04]} d6 {[%emt 0:01:22]} 3. d4 {[%emt 0:00:07]} cxd4 {[%emt 0:00:04]} 4. Nxd4 {[%emt 0:00:03]} Nf6 {[%emt 0:00:04]} 5. f3 {[%emt 0:00:03]} e5 {[%emt 0:04:57]} 6. Nb3 {[%emt 0:01:23]} d5 {[%emt 0:01:12]} 7. Bg5 {[%emt 0:00:12]} Be6 {[%emt 0:01:13]} 8. Bxf6 {[%emt 0:00:15]} gxf6 {[%emt 0:00:12]} 9. exd5 {[%emt 0:00:04]} Qxd5 {[%emt 0:01:36]} 10. Qxd5 {[%emt 0:00:06]} Bxd5 {[%emt 0:00:02]} 11. Nc3 {[%emt 0:00:06]} Be6 {[%emt 0:01:18]} 12. O-O-O {[%emt 0:00:08]} Nc6 {[%emt 0:05:26]} 13. Bb5 {[%emt 0:00:18]} Rc8 {[%emt 0:12:13]} 14. Nd5 {[%emt 0:00:05]} f5 {[%emt 0:02:01]} 15. Nf6+ {[%emt 0:25:48]} Ke7 {[%emt 0:00:15]} 16. Nd5+ {[%emt 0:00:06]} Ke8 {[%emt 0:02:54]} 17. Nf6+ {[%emt 0:19:00]} Ke7 {[%emt 0:02:41]} 18. Nd5+ {[%emt 0:00:04]} Ke8 {[%emt 0:00:55]} 1/2-1/2